bitfinex/quotes_ETHUSD_20250106
["timestamp","ask_amount","ask_price","bid_price","bid_amount"]
[1736201184084,3.38241398,3671.7,3671.6,35.0]
[1736201193008,0.65887398,3671.7,3671.6,35.55]
[1736201193214,0.65887398,3671.7,3671.6,36.61372807]
[1736201193408,0.25341307,3671.7,3671.6,36.61372807]
[1736201193975,0.65887398,3671.7,3671.6,36.61372807]
[1736201194911,3.38240398,3671.7,3671.6,36.61372807]
[1736201197019,3.38240398,3671.7,3671.6,36.80072807]
[1736201198380,3.38240398,3671.7,3671.6,36.1351]
[1736201200579,3.38240398,3671.7,3671.6,35.5851]
[1736201200916,3.38240398,3671.7,3671.6,35.187]
[1736201201625,4.21480398,3671.7,3671.6,35.0]
[1736201201818,3.80934307,3671.7,3671.6,35.0]
[1736201202125,4.46601576,3671.7,3671.6,35.0]
[1736201203190,2.97694307,3671.7,3671.6,35.0]
[1736201203947,3.01098925,3671.7,3671.6,35.0]
[1736201204817,2.97694307,3671.7,3671.6,35.0]
[1736201212039,0.25341307,3671.7,3671.6,35.55]
[1736201212544,0.25341307,3671.7,3671.6,41.6942]
[1736201213424,1.13537036,3672.1,3672.0,0.4131]
[1736201213612,1.13537036,3672.1,3672.0,1.1501]
[1736201214116,3.85787036,3673.1,3672.3,0.0225]
[1736201214337,2.72257,3673.0,3672.3,0.5725]
[1736201214856,2.72257,3673.0,3672.9,35.0]
[1736201215367,1.13537036,3673.1,3672.9,35.0]
[1736201215649,0.25375512,3673.0,3672.9,0.3981]
[1736201216068,0.25375512,3673.0,3672.9,35.3981]
[1736201216616,0.25375512,3673.0,3672.9,35.5851]
[1736201217212,2.97632512,3673.0,3672.9,35.5851]
[1736201217818,0.25375512,3673.0,3672.9,35.5851]
[1736201218018,0.25375512,3673.0,3672.9,36.1351]
[1736201221762,2.7225,3673.1,3672.9,36.1351]
[1736201222058,2.7225,3673.1,3672.9,1.1351]
[1736201222623,2.7225,3673.1,3673.0,35.0]
[1736201223243,2.97561636,3673.1,3673.0,35.0]
[1736201225283,4.30941405,3673.1,3673.0,35.0]
[1736201226702,4.30941405,3673.1,3671.6,2.72359]
[1736201226703,1.58691405,3673.1,3672.2,0.187]
[1736201226926,0.03403716,3673.0,3672.5,0.015]
[1736201227095,0.25311636,3673.1,3672.7,0.5725]
[1736201227277,0.25311636,3673.1,3673.0,0.9706]
[1736201227482,0.25311636,3673.1,3673.0,3.9706]
[1736201227707,4.42608331,3674.0,3673.3,0.0075]
[1736201227880,4.42608331,3674.0,3673.6,0.0075]
[1736201228477,4.42608331,3674.0,3673.7,35.55]
[1736201229083,2.72183,3674.0,3673.8,0.55]
[1736201229811,2.72183,3674.0,3673.9,35.0]
[1736201237590,2.97478279,3674.0,3673.9,35.0]
[1736201239716,2.72183,3674.0,3673.9,35.0]
[1736201240180,2.97505338,3674.0,3673.9,35.0]
[1736201244280,4.31672608,3674.0,3673.9,35.0]
[1736201248725,2.72249,3673.1,3673.0,0.187]
[1736201249548,2.72249,3673.1,3673.0,35.187]
[1736201249855,2.97571338,3673.1,3673.0,35.187]
[1736201252344,0.25322338,3673.1,3673.0,35.187]
[1736201256449,0.25322338,3673.1,3673.0,36.1351]
[1736201257252,0.25322338,3673.5,3673.1,0.55]
[1736201257558,2.97542338,3673.5,3673.1,0.55]
[1736201258053,2.7222,3673.5,3673.4,35.0]
[1736201258736,2.97673865,3673.5,3673.4,35.0]
[1736201262346,3.75393865,3673.5,3673.4,35.0]
[1736201268183,4.51847232,3673.5,3673.4,35.0]
[1736201269730,4.55250259,3673.5,3673.4,35.0]
[1736201270411,5.68787295,3673.5,3673.4,35.0]
[1736201270690,5.65384268,3673.5,3673.4,35.0]
[1736201271735,4.51847232,3673.5,3673.4,35.0]
[1736201272069,4.55250258,3673.5,3673.4,35.0]
[1736201272964,5.68787294,3673.5,3673.4,35.0]
[1736201273169,5.65384268,3673.5,3673.4,35.0]
[1736201274266,4.51847232,3673.5,3673.4,35.0]
[1736201274434,4.55250404,3673.5,3673.4,35.0]
[1736201278240,4.51847232,3673.5,3673.4,35.0]
[1736201278439,3.78796893,3673.5,3673.4,35.0]
[1736201279376,5.49222224,3673.5,3673.4,35.0]
[1736201279571,5.45819196,3673.5,3673.4,35.0]
[1736201280375,3.75393865,3673.5,3673.4,35.0]
[1736201280552,3.78797078,3673.5,3673.4,35.0]
[1736201280881,5.00188116,3673.5,3673.4,35.0]
[1736201282469,5.00188116,3673.5,3671.9,0.5851]
[1736201282470,0.7581,3672.8,3671.9,0.5851]
[1736201282775,2.72301,3672.5,3671.9,0.5851]
[1736201282990,0.03403937,3672.4,3671.9,0.5851]
[1736201283212,0.03403937,3672.4,3672.0,0.55]
[1736201283510,0.28857802,3672.4,3672.3,35.0]
[1736201283684,0.25453865,3672.4,3672.3,35.0]
[1736201283884,2.97754865,3672.4,3672.3,35.0]
[1736201287289,0.25453865,3672.4,3672.3,35.0]
[1736201289827,2.97754865,3672.4,3672.3,35.0]
[1736201293935,0.25453865,3672.4,3672.3,35.3981]
[1736201294129,0.25453865,3672.4,3672.3,35.9481]
[1736201303526,0.25453865,3672.4,3672.3,35.9631]
[1736201304519,0.25453865,3672.4,3672.3,0.9631]
[1736201304720,0.25453865,3672.4,3672.3,0.9706]
[1736201304899,0.25453865,3672.4,3672.3,4.63485541]
[1736201305510,0.25453865,3672.4,3672.3,39.63485541]
[1736201306337,0.25453865,3672.4,3672.3,42.18638393]
[1736201306543,2.75624062,3673.5,3672.6,0.015]
[1736201306699,2.75624062,3673.5,3672.8,0.55]
[1736201307124,2.72221,3673.5,3673.0,0.55]
[1736201307325,2.72221,3673.5,3673.4,35.0]
[1736201309915,2.75623878,3673.5,3673.4,35.0]
[1736201310696,2.72221,3673.5,3673.4,35.0]
[1736201314808,3.86196121,3673.7,3673.4,35.0]
[1736201314996,3.86196121,3673.7,3673.2,0.0075]
[1736201315223,1.13991121,3673.7,3673.2,0.0075]
[1736201315440,1.13991121,3673.7,3673.6,35.0]
[1736201315855,1.89961121,3673.7,3673.6,35.0]
[1736201316003,0.7597,3673.7,3673.6,35.0]
[1736201316201,2.72205,3673.7,3673.6,35.0]
[1736201318705,2.97681172,3673.7,3673.6,35.0]
[1736201321049,0.25476172,3673.7,3673.6,35.0]
[1736201321450,0.25476172,3673.7,3673.6,35.3981]
[1736201322152,0.25476172,3673.7,3673.6,35.5851]
[1736201328161,0.25476172,3673.7,3673.6,36.1576]
[1736201329755,0.25476172,3673.7,3673.6,36.1501]
[1736201332753,0.25476172,3673.7,3673.6,38.87972]
[1736201333856,1.13991121,3675.1,3674.4,0.5575]
[1736201334296,1.13991121,3675.1,3674.5,0.187]
[1736201334553,1.13991121,3675.3,3675.0,35.0]
[1736201334917,1.13991121,3675.3,3674.8,0.3981]
[1736201335502,1.13991121,3675.3,3675.2,35.0]
[1736201335914,2.72082,3675.4,3675.2,35.0]
[1736201336213,2.72082,3675.4,3674.8,0.3981]
[1736201336712,2.72082,3675.4,3675.3,35.0]
[1736201337277,3.93625293,3675.4,3675.3,35.0]
[1736201337502,3.90224299,3675.4,3675.3,35.0]
[1736201341296,2.7206,3675.7,3675.3,35.0]
[1736201341532,2.75466,3675.6,3675.1,0.3981]
[1736201341710,2.72073,3675.5,3674.6,0.9706]
[1736201342034,2.72073,3675.5,3675.4,35.0]
[1736201342736,3.48183,3675.5,3675.4,35.0]
[1736201343332,4.10546399,3675.5,3675.4,35.0]
[1736201344153,2.72073,3675.5,3675.4,35.0]
[1736201345515,3.53593,3675.5,3675.4,35.0]
[1736201351750,4.07796108,3675.5,3675.4,35.0]
[1736201354064,4.11197401,3675.5,3675.4,35.0]
[1736201354758,0.8144,3675.4,3674.3,0.5841]
[1736201354962,2.7214,3674.6,3674.3,0.5841]
[1736201355164,0.8144,3675.1,3674.3,0.5841]
[1736201355338,2.7215,3674.5,3674.3,0.5841]
[1736201355730,2.7215,3674.5,3674.4,35.0]
[1736201359971,0.03401791,3675.0,3674.4,35.0]
[1736201360270,2.72123,3674.9,3674.5,0.3981]
[1736201360773,2.72123,3674.9,3674.8,35.0]
[1736201366148,2.75524649,3674.9,3674.8,35.0]
[1736201366461,2.72123,3674.9,3674.8,35.0]
[1736201367392,3.8056,3674.9,3674.0,0.186]
[1736201367535,2.72175,3674.1,3674.0,0.186]
[1736201368342,2.72175,3674.1,3674.0,35.186]
[1736201369178,2.72175,3674.1,3674.0,35.0]
[1736201372287,3.55265,3674.1,3674.0,35.0]
[1736201373504,3.58667448,3674.1,3674.0,35.0]
[1736201373713,4.502452,3674.1,3674.0,35.0]
[1736201374017,2.72249,3673.1,3672.8,1.32590345]
[1736201374377,0.03403091,3673.4,3672.8,1.32590345]
[1736201374677,2.72257,3673.0,3672.8,1.32590345]
[1736201374864,2.72257,3673.0,3672.9,35.0]
[1736201378309,2.72245,3673.2,3672.9,35.0]
[1736201378711,2.72245,3673.2,3672.7,0.3981]
[1736201379060,2.72245,3673.2,3673.1,35.0]
[1736201388720,2.75648147,3673.2,3673.1,35.0]
[1736201391859,0.53657938,3673.8,3673.7,2.72205]
[1736201392069,1.13859036,3674.1,3674.0,0.9631]
[1736201392315,1.13859036,3674.1,3674.0,3.69242]
[1736201392458,1.13859036,3674.1,3674.0,39.080262]
[1736201393856,0.04,3675.2,3674.2,0.0075]
[1736201394108,0.07176798,3675.2,3674.2,0.0075]
[1736201394716,0.07176798,3675.2,3675.1,35.0]
[1736201394863,0.40484243,3675.2,3675.1,35.0]
[1736201397599,0.37307445,3675.2,3675.1,35.0]
[1736201399344,0.04,3675.2,3675.1,35.0]
[1736201400243,0.04,3675.3,3675.1,35.0]
[1736201400454,0.04,3675.3,3674.4,2.72151]
[1736201400910,0.04,3675.3,3675.2,35.0]
[1736201406141,0.04,3675.4,3675.2,35.0]
[1736201406311,0.04,3675.4,3674.6,0.3981]
[1736201406633,0.04,3675.4,3674.6,0.42531106]
[1736201406840,0.04,3675.4,3675.3,35.0]
[1736201418009,0.04,3675.8,3675.3,35.0]
[1736201418210,0.7835,3675.7,3675.3,35.0]
[1736201418547,0.7835,3675.7,3675.0,0.3981]
[1736201418548,0.03176798,3675.6,3675.0,0.3981]
[1736201418850,0.03176798,3675.6,3675.5,35.0]
[1736201419546,2.75240798,3675.6,3675.5,35.0]
[1736201420623,2.72064,3675.6,3675.5,35.0]
[1736201423146,0.7835,3675.7,3675.5,35.0]
[1736201423333,0.7835,3675.7,3675.0,0.3981]
[1736201423535,0.03176798,3675.6,3675.0,0.3981]
[1736201423740,0.03176798,3675.6,3675.5,35.0]
[1736201424249,2.75242798,3675.6,3675.5,35.0]
[1736201424422,0.7835,3675.7,3675.5,35.0]
[1736201424634,0.7835,3675.7,3675.0,0.3981]
[1736201424958,0.81526798,3675.7,3675.0,0.3981]
[1736201425164,0.81526798,3675.7,3675.6,35.0]
[1736201425368,3.50407,3675.7,3675.6,35.0]
[1736201425514,4.1616488,3675.7,3675.6,35.0]
[1736201427061,4.19341678,3675.7,3675.6,35.0]
[1736201428018,4.1616488,3675.7,3675.6,35.0]
[1736201438854,5.30023916,3675.7,3675.6,35.0]
[1736201440862,5.33200714,3675.7,3675.6,35.0]
[1736201443572,4.19341678,3675.7,3675.6,35.0]
[1736201443870,4.1616488,3675.7,3675.6,35.0]
[1736201446296,5.30333819,3675.7,3675.6,35.0]
[1736201447287,4.1616488,3675.7,3675.6,35.0]
[1736201449891,5.30307364,3675.7,3675.6,35.0]
[1736201450270,5.33484162,3675.7,3675.6,35.0]
[1736201451085,4.19341678,3675.7,3675.6,35.0]
[1736201452487,4.1616488,3675.7,3675.6,35.0]
[1736201453799,5.87151561,3675.7,3675.6,35.0]
[1736201454981,4.1616488,3675.7,3675.6,35.0]
[1736201456395,5.87151561,3675.7,3675.6,35.0]
[1736201464844,5.87151561,3675.7,3675.6,35.3981]
[1736201464845,1.70986681,3675.7,3675.6,35.3981]
[1736201464996,1.70986681,3675.7,3675.6,38.13374]
[1736201466390,2.31982242,3675.8,3675.6,38.13374]
[1736201466391,0.04,3675.8,3675.7,0.0075]
[1736201466702,0.04,3675.8,3675.7,0.61880072]
[1736201467109,0.04,3675.8,3675.7,35.61880072]
[1736201467266,0.04,3675.8,3675.7,35.5916]
[1736201467470,0.04,3675.8,3675.7,41.54883887]
[1736201468669,0.04,3675.8,3675.7,37.9514532]
[1736201468873,0.04,3676.6,3675.7,37.9514532]
[1736201469125,0.04,3676.6,3675.9,0.3981]
[1736201469288,0.04,3676.6,3676.0,0.32506606]
[1736201469475,0.07176798,3676.6,3676.5,35.0]
[1736201470396,0.04,3676.6,3676.5,35.0]
[1736201470741,2.79166798,3676.6,3676.5,35.0]
[1736201471527,0.04,3676.6,3676.5,35.3981]
[1736201471704,0.04,3676.6,3676.5,39.39525854]
[1736201471916,0.04,3677.1,3676.7,0.3981]
[1736201472113,0.04,3677.1,3676.9,0.3981]
[1736201472510,0.04,3677.1,3677.0,35.0]
[1736201472712,0.04,3677.1,3677.0,35.29786539]
[1736201475494,0.04,3677.1,3677.0,35.0]
[1736201479404,2.75953,3677.1,3677.0,35.0]
[1736201484067,0.04,3677.2,3677.0,35.3981]
[1736201484359,0.04,3677.2,3677.1,0.3981]
[1736201484498,0.04,3677.2,3677.1,0.42529092]
[1736201484697,0.04,3677.2,3677.1,35.42529092]
[1736201484951,0.04,3677.2,3677.1,35.3981]
[1736201486752,0.04,3677.7,3677.6,0.4131]
[1736201486902,0.04,3677.7,3677.6,0.5991]
[1736201487096,0.04,3677.7,3677.6,0.62628635]
[1736201487443,0.04,3677.7,3677.6,35.96083698]
[1736201487645,0.04,3677.7,3677.6,35.93365063]
[1736201489104,0.04,3678.3,3678.2,0.3981]
[1736201489308,0.04,3678.3,3678.2,0.99028629]
[1736201489505,0.04,3678.3,3678.2,1.17628629]
[1736201489742,0.04,3678.3,3678.2,36.56579892]
[1736201489925,0.04,3678.3,3678.2,36.53861263]
[1736201491052,0.099897,3678.7,3678.4,0.3981]
[1736201491234,0.099897,3678.7,3678.6,3.29092]
[1736201491442,0.099897,3678.7,3678.6,3.87502]
[1736201491636,0.099897,3678.7,3678.6,38.99001067]
[1736201491950,0.099897,3678.7,3678.6,39.17601067]
[1736201492156,0.099897,3678.7,3678.6,38.99001067]
[1736201492353,0.099897,3678.7,3678.6,39.17601067]
[1736201492954,2.7177,3679.6,3678.7,0.0225]
[1736201493159,2.7177,3679.6,3678.9,0.565]
[1736201493307,2.7177,3679.6,3679.0,0.02717647]
[1736201493507,2.7177,3679.6,3679.5,35.0]
[1736201494456,3.5216,3679.6,3679.5,35.0]
[1736201494760,6.5216,3679.6,3679.5,35.0]
[1736201494960,6.5216,3679.6,3678.2,0.3981]
[1736201494961,2.71839,3678.7,3678.2,0.3981]
[1736201495125,2.71839,3678.7,3678.2,0.5841]
[1736201495952,2.71839,3678.7,3678.6,35.0]
[1736201497788,2.75015798,3678.7,3678.6,35.0]
[1736201498438,3.37737978,3678.7,3678.6,35.0]
[1736201498759,6.37737978,3678.7,3678.6,35.0]
[1736201499056,2.71916,3677.6,3677.3,0.189]
[1736201500009,2.71916,3677.6,3677.5,35.0]
[1736201513408,2.75076798,3677.9,3677.5,35.0]
[1736201513409,0.03176798,3677.9,3677.5,35.0]
[1736201513614,2.7187,3678.3,3677.6,0.04218866]
[1736201513916,2.7187,3678.3,3677.7,0.3981]
[1736201514065,2.7187,3678.3,3678.2,35.0]
[1736201525349,3.5004,3678.3,3678.2,35.0]
[1736201539920,2.7187,3678.3,3678.2,35.0]
[1736201548070,1.74163479,3678.5,3678.2,35.0]
[1736201548071,1.74163479,3678.5,3678.2,35.3981]
[1736201548361,1.70986681,3678.5,3678.4,0.4056]
[1736201548661,1.70986681,3678.5,3678.4,0.5926]
[1736201548831,1.70986681,3678.5,3678.4,35.5926]
[1736201549745,3.2663834,3679.2,3678.4,37.94111812]
[1736201549954,3.2663834,3679.2,3678.5,0.02718057]
[1736201550542,3.2663834,3679.2,3679.1,35.0]
[1736201552559,4.0613834,3679.2,3679.1,35.0]
[1736201554162,3.2663834,3679.2,3679.1,35.0]
[1736201554462,3.94643054,3679.2,3679.1,35.0]
[1736201555927,3.97819852,3679.2,3679.1,35.0]
[1736201556340,3.94643054,3679.2,3679.1,35.0]
[1736201556945,7.73093054,3679.2,3679.1,35.0]
[1736201557345,11.76267054,3679.2,3679.1,35.0]
[1736201557879,11.76267054,3679.2,3677.8,0.5851]
[1736201557880,2.7188,3678.1,3677.8,0.3981]
[1736201558574,2.71894,3677.9,3677.8,0.3981]
[1736201558757,2.71882,3678.1,3677.8,35.3981]
[1736201559073,2.71882,3678.1,3677.8,0.3981]
[1736201559674,2.71882,3678.1,3678.0,35.0]
[1736201561859,3.39915193,3678.1,3678.0,35.0]
[1736201563466,4.21365193,3678.1,3678.0,35.0]
[1736201575700,7.21365193,3678.1,3678.0,35.0]
[1736201578004,7.21365193,3678.1,3677.0,0.3981]
[1736201578005,2.71953,3677.1,3677.0,0.3981]
[1736201578710,2.7198,3676.8,3676.7,0.3981]
[1736201578914,2.7198,3676.8,3676.7,35.3981]
[1736201579082,2.7198,3676.8,3676.7,35.0]
[1736201580647,2.75156798,3676.8,3676.7,35.0]
[1736201581098,6.37821778,3676.8,3676.7,35.0]
[1736201581311,6.3464498,3676.8,3676.7,35.0]
[1736201582385,2.72049,3675.8,3675.7,0.3981]
[1736201583270,2.72049,3675.8,3675.7,35.0]
[1736201583471,5.72049,3675.8,3675.7,35.0]
[1736201586429,6.564572,3675.8,3675.7,35.0]
[1736201587337,2.72101,3675.1,3675.0,0.3981]
[1736201588307,2.72101,3675.1,3675.0,35.0]
[1736201592439,5.72101,3675.1,3675.0,35.0]
[1736201592648,6.6440828,3675.1,3675.0,35.0]
[1736201594396,2.72172,3674.2,3673.8,0.3981]
[1736201594599,3.6440828,3675.1,3673.1,2.72747]
[1736201594600,2.72182,3674.1,3673.1,0.4031]
[1736201594924,2.72182,3674.1,3673.2,0.565]
[1736201595134,2.72194,3673.9,3673.3,0.745955]
[1736201595298,2.72194,3673.9,3673.8,35.0]
[1736201598946,2.68094,3673.9,3673.8,35.0]
[1736201599156,0.7876,3674.3,3673.8,35.0]
[1736201599309,2.72176,3674.1,3673.8,35.0]
[1736201599525,2.72176,3674.1,3673.4,0.3981]
[1736201599723,2.72176,3674.1,3673.5,0.02721827]
[1736201599927,2.72176,3674.1,3674.0,35.0]
[1736201600368,0.7526,3675.1,3674.1,0.55]
[1736201600529,0.7526,3675.4,3674.2,0.42531267]
[1736201600863,2.72117,3674.9,3674.2,0.42531267]
[1736201601072,2.72117,3674.9,3674.8,35.0]
[1736201603070,6.3185092,3674.9,3674.8,35.0]
[1736201604831,7.1090092,3674.9,3674.8,35.0]
[1736201605471,7.1090092,3674.9,3673.9,0.3981]
[1736201605472,3.0,3674.8,3673.9,0.3981]
[1736201605767,2.72153,3674.4,3673.9,0.3981]
[1736201605983,2.72182,3674.1,3673.9,0.3981]
[1736201606268,2.72182,3674.0,3673.9,0.3981]
[1736201606568,2.72182,3674.0,3673.9,35.3981]
[1736201607351,2.72182,3674.0,3673.9,35.0]
[1736201612142,2.72168,3674.2,3673.9,35.0]
[1736201612442,2.72144,3674.6,3673.9,0.3981]
[1736201612443,2.72176,3674.1,3673.9,0.3981]
[1736201612855,2.72176,3674.1,3674.0,35.0]
[1736201615717,3.54886,3674.1,3674.0,35.0]
[1736201622306,2.72176,3674.1,3674.0,35.0]
[1736201622476,0.54927847,3674.4,3674.0,35.3981]
[1736201622819,2.72172,3674.2,3674.0,0.3981]
[1736201623260,2.72172,3674.2,3674.1,35.0]
[1736201626839,5.72172,3674.2,3674.1,35.0]
[1736201627137,6.70514665,3674.2,3674.1,35.0]
[1736201631392,3.98342665,3674.2,3674.1,35.0]
[1736201632141,4.81012665,3674.2,3674.1,35.0]
[1736201634139,3.98342665,3674.2,3674.1,35.0]
[1736201634310,3.0,3674.2,3674.1,35.0]
[1736201639472,5.72168,3674.2,3674.1,35.0]
[1736201641883,7.4290611,3674.2,3674.1,35.0]
[1736201643084,1.7073811,3674.2,3674.1,35.0]
[1736201643282,1.7073811,3674.2,3674.1,35.3981]
[1736201643838,1.7073811,3674.3,3674.1,35.3981]
[1736201644068,1.7073811,3674.3,3674.1,0.3981]
[1736201644597,1.7073811,3674.3,3674.2,35.3981]
[1736201645282,2.72125,3674.8,3674.2,35.3981]
[1736201645434,2.72125,3674.8,3674.3,0.02721321]
[1736201645941,2.72125,3674.8,3674.7,35.0]
[1736201648501,2.72094,3675.2,3674.7,35.3981]
[1736201648792,2.72101,3675.1,3674.7,0.3981]
[1736201649161,2.72101,3675.1,3675.0,35.0]
[1736201649362,1.7073811,3675.2,3675.0,35.0]
[1736201649570,1.7073811,3675.2,3674.7,0.3981]
[1736201649905,2.72095,3675.2,3674.7,0.3981]
[1736201650091,2.72095,3675.2,3675.1,35.0]
[1736201650391,4.4282011,3675.4,3675.1,35.0]
[1736201650597,2.72088,3675.3,3675.1,35.0]
[1736201650799,2.72088,3675.3,3674.7,0.3981]
[1736201651295,2.72088,3675.3,3675.2,35.0]
[1736201658470,3.25621456,3675.5,3675.2,35.0]
[1736201658665,2.72079,3675.4,3674.7,0.3981]
[1736201659083,2.72079,3675.4,3675.3,35.0]
[1736201660091,0.53547456,3675.5,3675.3,35.0]
[1736201660607,0.53547456,3675.5,3674.7,0.3981]
[1736201660833,0.53547456,3675.5,3674.7,0.710054]
[1736201660834,3.25625456,3675.5,3674.7,0.710054]
[1736201661143,3.25625456,3675.5,3675.4,35.0]
[1736201663645,2.72078,3675.5,3675.4,35.0]
[1736201672291,0.03176798,3675.6,3675.4,35.0]
[1736201672596,0.55540128,3675.7,3675.3,0.3981]
[1736201672795,2.7207,3675.6,3675.3,0.3981]
[1736201673378,2.7207,3675.6,3675.5,35.0]
[1736201675955,0.7724,3676.2,3675.5,35.0]
[1736201676190,2.72043,3675.9,3675.3,0.3981]
[1736201676486,2.72029,3676.1,3675.4,0.015]
[1736201676693,2.72029,3676.1,3675.8,35.0]
[1736201677051,2.72029,3676.1,3675.4,0.015]
[1736201677588,2.72029,3676.1,3676.0,35.0]
[1736201678854,3.34938048,3676.1,3676.0,35.0]
[1736201679081,4.13914846,3676.1,3676.0,35.0]
[1736201680747,7.13914846,3676.1,3676.0,35.0]
[1736201681051,7.10738048,3676.1,3676.0,35.0]
[1736201684315,2.72101,3675.1,3674.6,0.3981]
[1736201684690,2.72101,3675.1,3674.7,0.02721027]
[1736201685011,0.03176798,3675.3,3674.6,0.3981]
[1736201685212,2.75262798,3675.3,3675.2,35.0]
[1736201685507,3.37622578,3675.3,3675.2,35.0]
[1736201685916,6.37622578,3675.3,3675.2,35.0]
[1736201686084,2.7216,3674.3,3674.2,1.41135184]
[1736201686797,2.72172,3674.2,3674.0,0.3981]
[1736201686970,2.72184,3674.0,3673.8,1.13828484]
[1736201687473,2.72184,3674.0,3673.9,35.0]
[1736201689417,0.545458,3674.2,3673.9,35.0]
[1736201689573,3.267158,3674.2,3673.4,0.3981]
[1736201689771,3.267158,3674.2,3673.5,0.02721886]
[1736201691075,1.13977395,3674.3,3673.6,0.4131]
[1736201691291,1.13977395,3674.3,3673.9,0.3981]
[1736201691494,1.13977395,3674.5,3673.9,0.3981]
[1736201692417,2.72164,3674.3,3673.9,0.3981]
[1736201693618,0.03176798,3674.6,3673.9,0.3981]
[1736201693822,0.8144,3674.3,3673.5,0.3981]
[1736201693980,2.72196,3673.9,3673.5,0.3981]
[1736201695021,2.72178,3674.1,3673.5,0.3981]
[1736201695224,3.86124395,3674.5,3673.6,0.565]
[1736201695422,3.86124395,3674.5,3673.6,0.59221883]
[1736201695619,1.13977395,3674.5,3673.6,0.0075]
[1736201695780,2.72168,3674.2,3673.5,0.3981]
[1736201695978,2.72175,3674.1,3673.6,0.02721794]
[1736201696215,0.03176798,3674.4,3673.5,0.3981]
[1736201696216,2.72184,3674.0,3673.5,0.3981]
[1736201699239,2.72169,3674.2,3673.5,0.3981]
[1736201700054,0.8072,3674.7,3673.8,0.015]
[1736201700235,0.8072,3674.7,3673.8,0.04221514]
[1736201700236,2.72141,3674.6,3673.8,0.04221514]
[1736201700404,0.03176798,3674.5,3673.7,0.3981]
[1736201700606,2.72191,3673.9,3673.7,0.3981]
[1736201700902,0.7593,3674.1,3673.4,0.3981]
[1736201701132,0.03176798,3674.0,3673.1,0.4031]
[1736201701336,0.03176798,3674.0,3673.1,0.005]
[1736201701337,2.72229,3673.4,3673.1,0.005]
[1736201701705,3.48127,3673.9,3673.2,0.3981]
[1736201701902,2.72191,3673.9,3673.3,0.02722305]
[1736201702132,0.03176798,3673.8,3673.2,0.3981]
[1736201702343,2.72214,3673.6,3673.2,0.3981]
[1736201706953,2.72214,3673.6,3673.5,35.0]
[1736201707810,2.75390798,3673.6,3673.5,35.0]
[1736201710353,3.3517868,3673.6,3673.5,35.3981]
[1736201710561,2.72214,3673.6,3673.5,35.3981]
[1736201711069,0.7529,3674.2,3673.5,35.3981]
[1736201711254,2.72171,3674.2,3673.5,0.3981]
[1736201711629,2.72171,3674.2,3674.1,35.0]
[1736201712780,6.86118395,3674.6,3674.1,35.0]
[1736201712781,1.13977395,3674.6,3674.1,35.3981]
[1736201712982,1.13977395,3675.0,3674.2,0.03471353]
[1736201713334,2.72126,3674.8,3674.1,0.3981]
[1736201713533,0.03176798,3674.8,3674.1,0.3981]
[1736201713734,0.7904,3674.6,3673.8,0.3981]
[1736201713933,2.72167,3674.3,3673.8,0.3981]
[1736201714169,2.72167,3674.3,3673.8,0.42531694]
[1736201714478,2.7216,3674.3,3674.2,35.0]
[1736201718463,4.41532537,3674.6,3674.2,35.0]
[1736201718464,3.27054757,3674.6,3674.2,35.3981]
[1736201718669,2.72139,3674.6,3674.2,0.3981]
[1736201718865,6.86089395,3675.0,3673.7,0.186]
[1736201718866,0.03176798,3674.5,3673.8,0.3981]
[1736201719082,2.72156,3674.4,3673.8,0.42531696]
[1736201719588,2.72156,3674.4,3674.3,35.0]
[1736201720306,3.0748328,3674.4,3674.3,35.0]
[1736201722102,2.72156,3674.4,3674.3,35.0]
[1736201722252,0.53482633,3674.9,3674.3,35.0]
[1736201722602,3.89274193,3674.9,3674.2,0.3981]
[1736201722804,3.86097395,3674.9,3674.3,0.02721291]
[1736201722975,3.86097395,3674.9,3674.8,35.0]
[1736201723357,2.7212,3674.9,3674.8,35.0]
[1736201726758,0.56359885,3675.2,3674.8,35.0]
[1736201726959,2.72101,3675.1,3674.3,0.0075]
[1736201727163,2.72101,3675.1,3674.3,0.03471155]
[1736201727465,3.86063395,3675.3,3675.0,35.0]
[1736201727973,1.13977395,3675.3,3674.6,0.0075]
[1736201728181,1.13977395,3675.3,3674.6,0.42177015]
[1736201728364,1.13977395,3675.3,3675.2,35.0]
[1736201728705,3.86063395,3675.3,3675.2,35.0]
[1736201729178,2.72086,3675.3,3675.2,35.0]
[1736201730820,1.13977395,3675.6,3675.2,35.0]
[1736201730997,1.13977395,3675.6,3675.2,0.3981]
[1736201731514,3.86041395,3675.6,3675.5,35.0]
[1736201731666,5.12842967,3675.6,3675.5,35.0]
[1736201731867,3.98865572,3675.6,3675.5,35.0]
[1736201734810,2.72064,3675.6,3675.5,35.0]
[1736201735022,0.54559064,3675.9,3675.5,35.0]
[1736201735322,1.13977395,3676.0,3675.3,0.0075]
[1736201735525,1.13977395,3676.0,3675.3,0.03470446]
[1736201735726,1.13977395,3676.0,3675.9,35.0]
[1736201736104,3.86011395,3676.0,3675.9,35.0]
[1736201736316,2.72034,3676.0,3675.9,35.0]
[1736201757967,3.10919878,3676.0,3675.9,35.0]
[1736201758283,3.88519878,3676.0,3675.9,35.0]
[1736201760378,3.8534308,3676.0,3675.9,35.0]
[1736201760547,2.72034,3676.0,3675.9,35.0]
[1736201764696,0.54128951,3676.4,3675.9,35.0]